bitfinex-derivatives/quotes_ETHF0:USTF0_20250417
["timestamp","ask_amount","ask_price","bid_price","bid_amount"]
[1744927328460,3.82636,1590.6,1590.5,0.16144495]
[1744927329159,3.82636,1590.6,1590.5,1.41888495]
[1744927332268,6.34982,1591.3,1590.7,1.25728]
[1744927332462,6.34982,1591.3,1590.9,1.25712]
[1744927332463,2.5188,1591.0,1590.9,1.25712]
[1744927332766,5.7266,1591.0,1590.9,2.94042]
[1744927333167,3.77584,1591.0,1590.9,2.94042]
[1744927334164,3.77584,1591.0,1590.9,1.6833]
[1744927334471,1.2572,1590.8,1590.7,0.152]
[1744927334666,4.465,1590.8,1590.7,0.152]
[1744927334972,1.25736,1590.6,1590.5,0.00944495]
[1744927335175,4.46516,1590.6,1590.5,0.00944495]
[1744927335655,1.25775,1590.1,1590.0,4.155]
[1744927335863,6.35199,1590.2,1589.6,0.8619]
[1744927336065,1.25802,1589.8,1589.7,20.67880241]
[1744927336466,0.8112,1589.9,1589.7,23.56727241]
[1744927336661,3.02409,1589.8,1589.7,23.56727241]
[1744927336860,3.02409,1589.8,1589.7,22.30920241]
[1744927337464,1.7661,1589.8,1589.7,23.56727241]
[1744927337660,3.02409,1589.8,1589.7,23.56727241]
[1744927337858,0.8112,1589.9,1589.7,23.56727241]
[1744927338165,3.21724495,1590.0,1589.7,23.56727241]
[1744927338166,1.25799,1589.8,1589.7,25.51700241]
[1744927338370,1.25799,1589.8,1589.7,24.83680241]
[1744927338766,4.46579,1589.8,1589.7,20.67880241]
[1744927338959,2.91759,1589.8,1589.7,20.67880241]
[1744927339163,0.00944495,1590.0,1589.7,26.93687241]
[1744927339474,0.00944495,1590.0,1589.9,1.25791]
[1744927339664,0.00944495,1590.0,1589.9,5.41591]
[1744927340173,4.47507495,1590.0,1589.9,4.158]
[1744927340375,2.92687495,1590.0,1589.9,4.158]
[1744927340674,0.00944495,1590.0,1589.9,6.25791]
[1744927341072,0.00944495,1590.0,1589.9,7.93951]
[1744927344475,4.95e-06,1590.0,1589.9,11.14731]
[1744927345272,1.25783495,1590.0,1589.9,5.8396]
[1744927345475,1.25799,1589.8,1589.7,4.158]
[1744927345677,4.64767,1589.9,1589.7,5.41604]
[1744927346177,4.64767,1589.9,1589.7,4.158]
[1744927346178,4.46579,1589.8,1589.7,4.158]
[1744927346474,4.9083,1589.8,1589.7,5.41607]
[1744927346779,4.9083,1589.8,1589.7,7.16907]
[1744927347285,4.9075,1589.8,1589.7,7.16907]
[1744927348578,4.95e-06,1590.0,1589.9,1.25791]
[1744927348982,1.25799,1589.8,1589.7,1.753]
[1744927349275,1.25799,1589.8,1589.7,5.41602]
[1744927349682,1.25799,1589.8,1589.7,4.158]
[1744927349878,2.94739,1589.8,1589.7,4.158]
[1744927350069,4.95e-06,1590.0,1589.7,4.158]
[1744927350269,4.95e-06,1590.0,1589.9,1.25791]
[1744927350483,1.25783495,1590.0,1589.8,2.96032]
[1744927350781,2.98371,1589.9,1589.8,1.25792]
[1744927351078,1.25807,1589.7,1589.6,0.00944495]
[1744927351277,3.2078,1589.7,1589.6,1.26759495]
[1744927351581,2.546,1589.9,1589.8,1.25799]
[1744927352383,3.80391,1589.9,1589.8,1.25799]
[1744927352779,3.80391,1589.9,1589.7,5.7909]
[1744927352780,1.25807,1589.7,1589.6,0.00944495]
[1744927352979,1.25832,1589.4,1589.3,1.25835]
[1744927353485,1.7258,1589.6,1589.5,1.25823]
[1744927353687,1.7258,1589.6,1589.5,5.41723]
[1744927354071,1.7258,1589.6,1589.5,7.10003]
[1744927356281,0.8202,1589.9,1589.5,10.8418]
[1744927356490,1.25813,1589.7,1589.6,1.25815]
[1744927356982,1.25823,1589.5,1589.4,4.16844495]
[1744927357583,2.96733,1589.5,1589.4,4.16844495]
[1744927357785,7.96733,1589.5,1589.4,0.00944495]
[1744927358081,9.9169,1589.5,1589.0,12.46429945]
[1744927358382,1.7252,1589.4,1589.3,1.25839]
[1744927358575,1.7252,1589.4,1589.3,5.41739]
[1744927359378,1.7252,1589.4,1589.3,7.04499]
[1744927359579,2.98351,1589.4,1589.3,4.159]
[1744927359780,0.8631,1589.5,1589.4,1.25831]
[1744927360085,0.8631,1589.5,1589.4,2.98171]
[1744927360683,0.8631,1589.5,1589.3,8.62516]
[1744927360981,1.25839,1589.3,1589.2,0.00944495]
[1744927361286,1.7629,1589.4,1589.3,1.25839]
[1744927362589,3.02121,1589.4,1589.3,1.25839]
[1744927362886,1.25839,1589.3,1589.2,2.99128495]
[1744927363185,1.25839,1589.3,1589.2,0.00944495]
[1744927363186,2.97169,1589.3,1589.2,0.00944495]
[1744927364188,7.97169,1589.3,1589.2,0.00944495]
[1744927365177,2.97169,1589.3,1589.2,0.00944495]
[1744927365385,2.97169,1589.3,1589.2,1.26790495]
[1744927365783,1.7133,1589.3,1589.2,1.26790495]
[1744927366185,1.25836,1589.4,1589.2,0.00944495]
[1744927366390,1.7705,1589.3,1589.2,2.87650495]
[1744927367395,3.02889,1589.3,1589.2,2.87650495]
[1744927367594,1.7705,1589.3,1589.2,2.87650495]
[1744927369286,1.7705,1589.3,1589.2,1.26790495]
[1744927369593,3.02889,1589.3,1589.2,0.00944495]
[1744927369890,3.02889,1589.3,1589.2,1.26790495]
[1744927370286,1.7136,1589.5,1589.2,0.00944495]
[1744927370491,4.66281,1589.5,1589.3,4.331]
[1744927370686,4.66281,1589.5,1589.4,1.25831]
[1744927370991,1.25831,1589.4,1589.3,5.58931]
[1744927371294,2.94921,1589.4,1589.3,5.58939]
[1744927371686,1.6909,1589.4,1589.3,5.58939]
[1744927371889,2.94921,1589.4,1589.3,5.58939]
[1744927372087,1.6909,1589.4,1589.3,5.58939]
[1744927372386,2.94921,1589.4,1589.3,5.58939]
[1744927374298,1.6909,1589.4,1589.3,5.58939]
[1744927374899,1.6909,1589.4,1589.3,7.31679]
[1744927375695,2.94921,1589.4,1589.3,5.58939]
[1744927375892,1.25839,1589.3,1589.2,0.00944495]
[1744927376197,3.03379,1589.3,1589.2,1.26790495]
[1744927378191,3.03379,1589.3,1589.2,0.00944495]
[1744927378497,3.03379,1589.3,1589.2,1.26790495]
[1744927379401,3.03379,1589.3,1589.2,0.00944495]
[1744927379598,6.24159,1589.3,1589.2,0.00944495]
[1744927379795,11.24159,1589.3,1589.2,0.00944495]
[1744927380200,1.2587,1588.9,1588.8,6.0184]
[1744927380502,1.2587,1588.9,1588.8,4.331]
[1744927380898,1.25886,1588.7,1588.6,13.89518945]
[1744927381405,2.94479495,1588.8,1588.7,1.25886]
[1744927381904,1.68594495,1588.8,1588.7,1.25886]
[1744927382199,0.00944495,1588.8,1588.7,1.25886]
[1744927382399,0.00944495,1588.8,1588.7,2.98796]
[1744927382789,0.00944495,1588.8,1588.7,1.25886]
[1744927382995,1.68594495,1588.8,1588.7,1.25886]
[1744927383505,1.68594495,1588.8,1588.7,2.98796]
[1744927384507,0.00944495,1588.8,1588.7,2.98796]
[1744927386803,1.26822495,1588.8,1588.7,1.7291]
[1744927387109,0.00944495,1588.8,1588.7,1.25886]
[1744927387307,0.00944495,1588.8,1588.7,3.03506]
[1744927388310,1.72924495,1588.8,1588.7,3.03506]
[1744927388504,2.98802495,1588.8,1588.7,3.03506]
[1744927389006,1.72924495,1588.8,1588.7,3.03506]
[1744927390912,0.00944495,1588.8,1588.7,3.03506]
[1744927392109,2.5172,1589.2,1589.1,1.25854]
[1744927392706,1.25854,1589.1,1589.0,5.59055]
[1744927392906,2.96854,1589.1,1589.0,5.59055]
[1744927393415,1.71,1589.1,1589.0,5.59055]
[1744927393914,2.96854,1589.1,1589.0,5.59055]
[1744927394213,1.71,1589.1,1589.0,5.59055]
[1744927396113,2.96854,1589.1,1589.0,5.59055]
[1744927396316,2.96854,1589.1,1589.0,4.332]
[1744927396518,1.71,1589.1,1589.0,5.59062]
[1744927397607,2.96854,1589.1,1589.0,5.59062]
[1744927397802,1.64574495,1589.2,1589.0,5.59062]
[1744927397803,0.00944495,1589.2,1589.1,1.25854]
[1744927398017,0.00944495,1589.2,1589.1,3.79924]
[1744927398209,1.64204495,1589.2,1589.1,3.79924]
[1744927399316,0.00944495,1589.2,1589.1,3.79924]
[1744927399712,0.00944495,1589.2,1589.1,2.98034]
[1744927399912,0.00944495,1589.2,1589.0,4.332]
[1744927400112,3.81446495,1589.2,1589.1,1.25854]
[1744927400410,2.55594495,1589.2,1589.1,1.25854]
[1744927400807,3.81440495,1589.2,1589.1,1.25854]
[1744927401017,3.81445495,1589.2,1589.1,1.25854]
[1744927402510,2.55594495,1589.2,1589.1,1.25854]
[1744927403115,2.55594495,1589.2,1589.1,4.46634]
[1744927403317,2.55594495,1589.2,1589.1,6.19034]
[1744927404306,2.55594495,1589.2,1589.1,2.98254]
[1744927405719,2.55594495,1589.2,1589.1,1.25854]
[1744927405920,3.81440495,1589.2,1589.1,1.25854]
[1744927406622,2.55594495,1589.2,1589.1,1.25854]
[1744927406813,3.81440495,1589.2,1589.1,1.25854]
[1744927407014,2.55594495,1589.2,1589.1,1.25854]
[1744927407218,3.81440495,1589.2,1589.1,1.25854]
[1744927407420,2.55594495,1589.2,1589.1,1.25854]
[1744927407621,3.81440495,1589.2,1589.1,1.25854]
[1744927408415,2.55594495,1589.2,1589.1,1.25854]
[1744927410319,2.55594495,1589.2,1589.1,2.90144]
[1744927412018,0.00944495,1589.2,1589.1,2.90144]
[1744927412715,1.73334495,1589.2,1589.1,2.90144]
[1744927415521,1.73334495,1589.2,1589.1,6.10924]
[1744927415718,0.00944495,1589.2,1589.1,2.90144]
[1744927416116,0.00944495,1589.2,1589.1,6.10924]
[1744927416623,1.6754,1589.5,1589.4,1.25831]
[1744927416817,1.6754,1589.5,1589.4,5.57631]
[1744927417225,1.6754,1589.5,1589.4,7.32221]
[1744927418520,13.58080204,1590.0,1589.9,1.25791]
[1744927418721,16.51183204,1590.0,1589.9,1.25791]
[1744927418924,16.51183204,1590.0,1589.6,4.318]
[1744927418925,20.25400204,1590.0,1589.6,4.318]
[1744927419128,4.46585,1589.8,1589.6,5.57607]
[1744927419326,0.8379,1589.7,1589.6,5.57607]
[1744927419833,0.8379,1589.7,1589.6,7.22207]
[1744927420926,0.8379,1589.7,1589.6,5.57615]
[1744927421427,0.8379,1589.7,1589.6,7.25735]
[1744927421925,2.4737,1589.7,1589.6,7.25735]
[1744927424726,3.73177,1589.7,1589.6,7.25735]
[1744927425030,3.73177,1589.7,1589.6,5.57615]
[1744927426030,2.4737,1589.7,1589.6,5.57615]
[1744927426329,2.4737,1589.7,1589.6,7.29505]
[1744927428430,1.6358,1589.7,1589.6,7.29505]
[1744927428637,0.8353,1590.0,1589.9,1.25791]
[1744927428838,0.8353,1590.0,1589.9,5.57491]
[1744927429036,5.30093,1590.0,1589.9,4.317]
[1744927429535,2.09313,1590.0,1589.9,4.317]
[1744927429737,5.30093,1590.0,1589.9,4.317]
[1744927430041,5.30093,1590.0,1589.9,5.57491]
[1744927430432,2.09313,1590.0,1589.9,5.57491]
[1744927430647,5.30093,1590.0,1589.9,5.57491]
[1744927432940,5.30093,1590.0,1589.9,4.317]
[1744927434140,5.30093,1590.0,1589.9,5.57491]
[1744927434833,0.8353,1590.0,1589.9,5.57491]
[1744927435142,2.09313,1590.0,1589.9,5.57491]
[1744927435341,3.85193,1590.0,1589.9,5.57491]
[1744927435836,2.5941,1590.0,1589.9,5.57491]
[1744927436036,3.85193,1590.0,1589.9,5.57491]
[1744927440945,7.05973,1590.0,1589.9,5.57491]
[1744927442338,4.0431,1590.0,1589.9,5.57491]
[1744927442540,0.806,1590.2,1590.1,1.25775]
[1744927442847,1.25783,1590.0,1589.9,4.317]
[1744927443039,4.46563,1590.0,1589.9,4.317]
[1744927443239,4.46563,1590.0,1589.9,5.57491]
[1744927443537,5.29423,1590.0,1589.9,5.57491]
[1744927444746,5.29423,1590.0,1589.9,4.317]
[1744927445650,5.29423,1590.0,1589.9,5.57491]
[1744927447147,0.8286,1590.0,1589.9,5.57491]
[1744927448753,4.0364,1590.0,1589.9,5.57491]
[1744927448942,6.35141,1590.5,1590.0,3.14459]
[1744927449147,6.08157,1590.3,1590.2,1.25764]
[1744927449352,6.08157,1590.3,1590.2,5.54064]
[1744927449849,6.08157,1590.3,1590.2,4.283]
[1744927450349,6.08157,1590.3,1590.2,5.54067]
[1744927450553,2.87377,1590.3,1590.2,5.54067]
[1744927450851,6.08157,1590.3,1590.2,5.54067]
[1744927453257,3.2078,1590.3,1590.2,4.283]
[1744927453452,3.2078,1590.3,1590.2,6.41227]
[1744927453653,3.2078,1590.3,1590.2,8.12737]
[1744927453857,2.97436,1590.4,1590.3,1.25759]
[1744927454159,2.97436,1590.4,1590.3,2.97269]
[1744927454453,5.31772,1590.4,1590.3,2.97269]
[1744927455055,1.25759,1590.3,1590.2,5.54061]
[1744927455257,1.7793,1590.3,1590.2,5.54061]
[1744927455554,1.7793,1590.3,1590.2,7.27161]
[1744927455751,3.03689,1590.3,1590.2,1.25761]
[1744927455956,3.91029,1590.3,1590.2,1.25761]
[1744927456156,3.91029,1590.3,1590.2,2.98861]
[1744927458161,3.91029,1590.3,1590.2,2.98867]
[1744927461661,1.25767,1590.2,1590.1,4.283]
[1744927461858,6.18337,1590.2,1590.1,4.283]
[1744927462455,6.18337,1590.2,1590.1,5.54075]
[1744927464663,6.18337,1590.2,1590.1,4.283]
[1744927465064,3.14453,1590.1,1589.8,4.261]
[1744927465250,1.25791,1589.9,1589.8,4.261]
[1744927465655,3.03261,1589.9,1589.8,4.261]
[1744927467154,6.24041,1589.9,1589.8,5.51899]
[1744927467358,3.03261,1589.9,1589.8,7.23209]
[1744927471567,4.0683,1590.1,1590.0,1.25783]
[1744927472161,3.2078,1590.1,1590.0,1.25783]
[1744927472364,1.25773,1590.2,1590.1,1.25775]
[1744927472664,1.7472,1590.2,1590.1,5.51975]
[1744927473468,3.00487,1590.2,1590.1,5.51975]
[1744927473669,3.00487,1590.2,1590.1,4.262]
[1744927474768,3.00487,1590.2,1590.1,5.51975]
[1744927474968,3.00487,1590.2,1590.1,4.262]
[1744927477868,3.14439,1590.1,1589.8,8.30529945]
[1744927478075,4.46571,1589.9,1589.8,12.56729945]
[1744927478370,3.2078,1589.9,1589.8,9.56328945]
[1744927478572,6.24461,1589.9,1589.8,8.30529945]
[1744927481172,1.25807,1589.7,1589.6,4.262]
[1744927481972,2.87277,1589.7,1589.6,4.262]
[1744927482475,6.08057,1589.7,1589.6,4.262]
[1744927484171,1.25815,1589.6,1589.5,8.3147444]
[1744927484372,1.6935,1589.6,1589.5,9.5729744]
[1744927484571,1.25803,1589.8,1589.7,1.25807]
[1744927484768,1.25803,1589.8,1589.7,5.52007]
[1744927485268,4.9013,1589.9,1589.8,1.25799]
[1744927485473,2.87247,1590.1,1590.0,1.25783]
[1744927485673,2.87247,1590.1,1589.9,1.25787]
[1744927485674,1.25788,1590.0,1589.9,1.25787]
[1744927485972,4.46568,1590.0,1589.9,3.01547]
[1744927486172,6.20668,1590.0,1589.9,3.01547]
[1744927486876,2.99888,1590.0,1589.9,3.01547]
[1744927487772,2.99888,1590.0,1589.9,1.7576]
[1744927487974,6.20668,1590.0,1589.9,3.01551]
[1744927488480,2.99889,1590.0,1589.9,1.25791]
[1744927488779,2.6316,1590.3,1590.1,1.25774]
[1744927488979,1.7543,1590.2,1590.1,5.51974]
[1744927489981,0.8773,1590.3,1590.2,1.25767]
[1744927490180,0.8773,1590.3,1590.2,3.02637]
[1744927490772,11.63025204,1590.8,1590.6,1.25735]
[1744927490972,2.95898,1590.7,1590.5,1.25737]
[1744927491173,2.95898,1590.7,1590.6,1.25736]
[1744927491374,1.7017,1590.7,1590.6,1.25736]
[1744927492067,3.3303,1590.7,1590.6,1.25736]
[1744927492785,4.58758,1590.7,1590.6,1.25736]
[1744927492978,3.2078,1590.8,1590.7,1.25728]
[1744927493277,1.25736,1590.6,1590.5,0.00944495]
[1744927493486,1.6286,1590.7,1590.6,1.25736]
[1744927494081,1.6286,1590.7,1590.6,3.03436]
[1744927503088,6.09368,1590.7,1590.6,1.25736]
[1744927503390,1.6286,1590.7,1590.6,1.25736]
[1744927504092,2.88588,1590.7,1590.6,1.25736]
[1744927504387,2.88588,1590.7,1590.5,0.00944495]
[1744927504388,1.25736,1590.6,1590.5,0.00944495]
[1744927504588,4.71356,1590.6,1590.5,0.00944495]
[1744927504785,1.25765,1590.3,1590.2,1.25763]
[1744927505185,1.25772,1590.2,1590.1,1.25771]
[1744927505380,3.2078,1590.5,1590.4,1.25752]
[1744927505593,2.568,1590.4,1590.3,1.25759]
[1744927506800,1.26691495,1590.5,1590.4,1.25752]
[1744927506801,0.00944495,1590.5,1590.4,1.25752]
[1744927506988,1.26688495,1590.5,1590.4,1.25752]
[1744927507188,2.99188495,1590.5,1590.4,1.25752]
[1744927507897,1.73444495,1590.5,1590.4,1.25752]
[1744927509799,2.99188495,1590.5,1590.4,1.25752]
[1744927511401,6.19968495,1590.5,1590.4,1.25752]
[1744927512098,1.25759,1590.3,1590.2,1.26710495]
[1744927512899,1.25759,1590.3,1590.2,0.00944495]
[1744927512900,4.46539,1590.3,1590.2,0.00944495]
[1744927513202,11.23719,1590.3,1590.2,0.00944495]
[1744927514194,6.23719,1590.3,1590.2,0.00944495]
[1744927514396,4.9796,1590.3,1590.2,1.26711495]
[1744927514596,1.6513,1590.4,1590.3,1.25759]
[1744927515002,1.6513,1590.4,1590.3,3.02749]
[1744927515197,2.90882,1590.4,1590.3,3.02749]
[1744927515496,1.6513,1590.4,1590.3,3.02749]
[1744927515700,2.90882,1590.4,1590.3,3.02749]
[1744927516401,2.90882,1590.4,1590.3,1.25759]
[1744927516603,1.25759,1590.3,1590.2,5.52605495]
[1744927516804,4.63759,1590.3,1590.2,5.52605495]
[1744927520304,4.63759,1590.3,1590.2,8.73385495]
[1744927520505,4.63759,1590.3,1590.2,5.52605495]
[1744927522605,4.63759,1590.3,1590.2,4.26844495]
[1744927522808,4.63759,1590.3,1590.2,5.52611495]
[1744927523902,7.84539,1590.3,1590.2,0.00944495]
[1744927524105,1.25791,1589.9,1589.8,5.51496]
[1744927524796,2.99641,1589.9,1589.8,5.51496]
[1744927525403,2.99641,1589.9,1589.8,4.257]
[1744927527003,2.99641,1589.9,1589.8,5.51499]
[1744927527302,1.7137,1590.0,1589.9,1.25791]
[1744927527507,0.8305,1590.0,1589.9,2.91001]
[1744927527693,2.08833,1590.0,1589.9,2.91001]
[1744927528795,0.8305,1590.0,1589.9,2.91001]
[1744927529196,2.08833,1590.0,1589.9,2.91001]
[1744927532202,1.25791,1589.9,1589.8,4.257]
[1744927532505,2.89331,1589.9,1589.8,4.257]
[1744927532704,2.89331,1589.9,1589.8,7.20729]
[1744927534516,2.89331,1589.9,1589.8,4.257]
[1744927534517,3.71301,1589.9,1589.8,4.257]
[1744927534715,1.25799,1589.8,1589.7,1.26751495]
[1744927534905,2.89379,1589.8,1589.7,1.26751495]
[1744927535212,2.89379,1589.8,1589.7,0.00944495]
[1744927535812,6.10159,1589.8,1589.7,0.00944495]
[1744927536410,1.6358,1589.8,1589.7,1.26751495]
[1744927536912,2.89379,1589.8,1589.7,2.93671495]
[1744927538212,2.5484,1589.9,1589.7,1.67864495]
[1744927538406,3.80631,1589.9,1589.8,1.6692]
[1744927539314,3.80631,1589.9,1589.8,2.92719]
[1744927539503,2.08835,1590.0,1589.9,1.25791]
[1744927539708,2.08835,1590.0,1589.9,3.03531]
[1744927541014,0.8305,1590.0,1589.9,3.03531]
[1744927541216,2.91792,1590.1,1590.0,1.25783]
[1744927541514,2.91792,1590.1,1590.0,3.03523]
[1744927542713,2.91792,1590.1,1590.0,1.7774]
[1744927544616,1.25783,1590.0,1589.9,2.14714]
[1744927544911,1.25783,1590.0,1589.9,3.77814]
[1744927544912,3.00383,1590.0,1589.9,3.77814]
[1744927546718,3.00383,1590.0,1589.9,2.88884]
[1744927554323,1.25791,1589.9,1589.8,4.258]
[1744927554515,4.60761,1589.9,1589.8,4.258]
[1744927554714,1.25799,1589.8,1589.7,0.00944495]
[1744927554916,2.86419,1589.8,1589.7,0.00944495]
[1744927558021,6.07199,1589.8,1589.7,0.00944495]
[1744927562024,6.07199,1589.8,1589.7,4.95e-06]
[1744927564326,11.07199,1589.8,1589.7,4.95e-06]
[1744927569130,11.22399,1589.8,1589.7,4.95e-06]
[1744927569540,1.25854,1589.1,1589.0,4.214]
[1744927569735,1.25862,1589.0,1588.9,1.7642]
[1744927569935,4.73382,1589.0,1588.9,1.7642]
[1744927570436,1.2587,1588.9,1588.8,13.34859945]
[1744927570637,2.9425,1588.9,1588.8,15.01159945]
[1744927570835,0.87514495,1589.0,1588.8,20.01159945]
[1744927571041,0.00944495,1589.0,1588.9,2.9217]
[1744927571243,1.26806495,1589.0,1588.9,3.7532]
[1744927571540,1.26806495,1589.0,1588.9,7.4945]
[1744927571838,1.26806495,1589.0,1588.9,8.7532]
[1744927572643,1.26806495,1589.0,1588.9,7.4945]
[1744927572939,1.26806495,1589.0,1588.9,2.4945]
[1744927573837,1.26806495,1589.0,1588.9,3.7532]
[1744927574244,1.26806495,1589.0,1588.9,2.4945]
[1744927575448,1.26806495,1589.0,1588.9,1.663]
[1744927575639,3.73696495,1589.0,1588.9,1.663]
[1744927576947,4.61356495,1589.0,1588.9,1.663]
[1744927577251,1.2587,1588.9,1588.8,5.0433]
[1744927577444,6.1893,1588.9,1588.8,6.7979]
[1744927579549,6.1893,1588.9,1588.8,5.9686]
[1744927580143,6.1893,1588.9,1588.8,1.7546]
[1744927582850,1.25878,1588.8,1588.7,0.00944495]
[1744927583056,2.90888,1588.8,1588.7,0.00944495]
[1744927583749,2.90888,1588.8,1588.7,1.68284495]
[1744927584752,2.90888,1588.8,1588.7,0.00944495]
[1744927588152,1.25878,1588.8,1588.7,0.00944495]
[1744927588561,1.25878,1588.8,1588.7,0.82004495]
[1744927588859,1.25878,1588.8,1588.7,0.00944495]
[1744927589263,2.88708,1588.8,1588.7,1.66634495]
[1744927589964,2.88708,1588.8,1588.7,0.00944495]
[1744927596061,2.88708,1588.8,1588.7,4.95e-06]
[1744927600669,7.88708,1588.8,1588.7,4.95e-06]
[1744927600972,2.88708,1588.8,1588.7,4.95e-06]
[1744927601172,1.25949,1587.9,1587.8,5.45354]
[1744927601364,3.14835,1588.1,1587.8,6.31834]
[1744927601570,1.25949,1587.9,1587.8,5.0588]
[1744927601863,6.35614,1588.2,1587.9,1.25945]
[1744927601864,3.2078,1588.2,1587.9,1.25945]
[1744927602061,1.25949,1587.9,1587.8,5.0588]
[1744927602268,1.25949,1587.9,1587.8,5.06824495]
[1744927602470,1.25949,1587.9,1587.8,11.72854495]
[1744927602874,1.25949,1587.9,1587.8,12.98811495]
[1744927603076,1.25949,1587.9,1587.8,11.72854495]
[1744927605272,1.25949,1587.9,1587.8,12.98811495]
[1744927605469,1.25949,1587.9,1587.8,11.72854495]
[1744927607670,1.25949,1587.9,1587.8,12.98811495]
[1744927608577,1.25949,1587.9,1587.8,11.72854495]
[1744927610383,1.25949,1587.9,1587.8,6.72854495]
[1744927610981,1.25949,1587.9,1587.8,7.98811495]
[1744927611782,1.25948,1588.0,1587.9,1.25948]
[1744927611982,1.25948,1588.0,1587.9,1.6257]
[1744927612182,1.25948,1588.0,1587.9,2.88519]
[1744927612880,4.46722,1588.1,1588.0,1.25937]
[1744927613179,1.25942,1588.1,1588.0,3.79397]
[1744927614781,1.25942,1588.1,1588.0,2.5346]
[1744927616283,1.25942,1588.1,1588.0,1.6457]
[1744927616580,1.25942,1588.0,1587.9,0.8367]
[1744927616781,1.25949,1587.9,1587.8,6.73914495]
[1744927616983,1.25949,1587.9,1587.8,5.87434495]
[1744927617186,2.97019,1587.9,1587.8,5.87434495]
[1744927617378,6.17799,1587.9,1587.8,5.87434495]
[1744927617883,2.97019,1587.9,1587.8,5.87434495]
[1744927618184,2.97019,1587.9,1587.8,7.13391495]
[1744927618486,2.97019,1587.9,1587.8,5.87434495]
[1744927619186,2.97019,1587.9,1587.8,7.13391495]
[1744927620380,2.97019,1587.9,1587.8,5.87434495]
[1744927620584,6.17799,1587.9,1587.8,5.87434495]
[1744927620787,6.17799,1587.9,1587.8,7.13391495]
[1744927621587,6.17799,1587.9,1587.8,5.87434495]
[1744927622089,6.17799,1587.9,1587.8,0.00944495]
[1744927622482,1.25965,1587.7,1587.6,4.182]
[1744927622679,4.46745,1587.7,1587.6,4.182]
[1744927622986,1.25981,1587.5,1587.4,8.04043]
[1744927623183,1.25981,1587.5,1587.4,5.0249]
[1744927623585,1.25981,1587.5,1587.4,6.28479]
[1744927623786,5.32127,1587.7,1587.6,1.25973]
[1744927624186,3.2078,1587.7,1587.6,1.25973]
[1744927624881,1.7379,1587.8,1587.7,1.25965]
[1744927625081,5.32117,1587.9,1587.8,1.25957]
[1744927625281,1.25957,1587.8,1587.7,5.44158]
[1744927625482,1.25957,1587.8,1587.7,6.32548]
[1744927627796,1.25957,1587.8,1587.7,5.44158]
[1744927627991,2.88987,1587.8,1587.7,5.44158]
[1744927629701,2.88987,1587.8,1587.7,4.182]
[1744927631799,2.88987,1587.8,1587.7,5.44165]
[1744927632500,2.88987,1587.8,1587.7,4.182]
[1744927633402,2.88987,1587.8,1587.7,5.44165]
[1744927633598,2.88987,1587.8,1587.7,4.182]
[1744927633898,2.88987,1587.8,1587.7,5.44165]
[1744927634795,6.09767,1587.8,1587.7,5.44165]
[1744927634995,2.88987,1587.8,1587.7,5.44165]
[1744927635403,1.7081,1588.0,1587.9,1.25949]
[1744927635596,3.4668,1588.0,1587.9,1.25949]
[1744927635902,4.47650495,1588.2,1588.1,1.25934]
[1744927636402,1.25934,1588.1,1588.0,5.44237]
[1744927636591,3.01804,1588.1,1588.0,5.44237]
[1744927637402,3.01804,1588.1,1588.0,8.65017]
[1744927637800,1.7587,1588.1,1588.0,5.44237]
[1744927638302,1.7587,1588.1,1588.0,8.65017]
[1744927638997,3.01804,1588.1,1588.0,8.65017]
[1744927639507,1.7587,1588.1,1588.0,8.65017]
[1744927639705,1.26876495,1588.2,1588.1,1.25934]
[1744927639908,1.26876495,1588.2,1588.1,3.85804]
[1744927640300,0.00944495,1588.2,1588.1,3.85804]
[1744927640500,0.00944495,1588.2,1588.1,9.67754]
[1744927641903,0.00944495,1588.2,1588.1,4.67754]
[1744927643405,0.00944495,1588.2,1588.1,9.67754]
[1744927644207,0.00944495,1588.2,1588.1,4.67754]
[1744927644712,2.99456,1588.4,1588.3,1.25918]
[1744927645008,2.99456,1588.4,1588.3,5.44118]
[1744927647611,2.99456,1588.4,1588.3,7.10888]
[1744927648012,1.72464495,1588.5,1588.4,1.2591]
[1744927648013,0.00944495,1588.5,1588.4,1.2591]
[1744927648204,0.00944495,1588.5,1588.4,4.5665]
[1744927648714,1.26846495,1588.5,1588.4,4.5665]
[1744927648911,1.26846495,1588.5,1588.4,2.9268]
[1744927649211,1.26846495,1588.5,1588.3,4.182]
[1744927649212,1.2591,1588.4,1588.3,1.25911]
[1744927649510,4.6632,1588.4,1588.3,5.43211]
[1744927650097,2.5907,1588.4,1588.3,5.43211]
[1744927650314,2.5907,1588.4,1588.3,7.09201]
[1744927651006,3.8498,1588.4,1588.3,7.09201]
[1744927653012,2.5907,1588.4,1588.3,7.09201]
[1744927653510,3.8498,1588.4,1588.3,7.09201]
[1744927657413,7.0576,1588.4,1588.3,4.173]
[1744927657906,1.25918,1588.3,1588.2,0.00944495]
[1744927658113,2.88438,1588.3,1588.2,0.00944495]
[1744927658314,7.88438,1588.3,1588.2,0.00944495]
[1744927660616,2.88438,1588.3,1588.2,0.00944495]
[1744927666916,1.25942,1588.0,1587.9,4.173]
[1744927667921,2.89322,1588.0,1587.9,4.173]
[1744927671520,1.25949,1587.9,1587.8,0.00944495]
[1744927671722,3.87059,1587.9,1587.8,0.00944495]
[1744927680421,8.87059,1587.9,1587.8,0.00944495]
[1744927681728,3.87059,1587.9,1587.8,0.00944495]
[1744927685533,1.25949,1587.9,1587.8,0.00944495]
[1744927687832,4.46729,1587.9,1587.8,0.00944495]
[1744927688727,1.25949,1587.9,1587.8,0.00944495]
[1744927688924,1.25949,1587.9,1587.8,0.87694495]